bitfinex/quotes_ETHUSD_20251024
["timestamp","ask_amount","ask_price","bid_price","bid_amount"]
[1761286827245,0.1256,3970.5,3970.1,0.002]
[1761286827447,0.3376,3970.2,3970.1,0.002]
[1761286827756,0.4366,3970.2,3970.1,2.47]
[1761286828152,0.3376,3970.2,3970.1,5.39014474]
[1761286828464,0.4366,3970.2,3970.1,5.39014474]
[1761286828976,0.4366,3970.2,3970.1,5.89702474]
[1761286830354,0.3376,3970.2,3970.1,5.89702474]
[1761286830764,0.1256,3970.2,3970.1,5.89702474]
[1761286831545,0.2257,3970.2,3970.1,5.89702474]
[1761286833376,0.1256,3970.2,3970.1,5.89702474]
[1761286833975,0.2257,3970.2,3970.1,2.97688]
[1761286835181,0.2257,3970.2,3970.1,0.002]
[1761286835182,2.64436479,3970.2,3970.1,0.002]
[1761286835365,3.2607678,3970.2,3970.1,3.192]
[1761286837074,0.1256,3970.2,3970.1,3.69888]
[1761286842217,0.2257,3970.2,3970.1,3.69888]
[1761286846378,0.1256,3970.2,3970.1,3.69888]
[1761286846597,0.2257,3970.2,3970.1,3.69888]
[1761286849911,0.1256,3970.2,3970.1,3.69888]
[1761286850685,0.1256,3970.2,3970.1,4.15148]
[1761286851081,0.1256,3970.2,3970.1,0.50888]
[1761286851394,0.1256,3970.2,3970.1,3.69688]
[1761286852478,0.1256,3970.2,3970.1,4.14948]
[1761286852683,0.1256,3970.2,3970.1,3.69688]
[1761286854759,0.001,3970.6,3970.2,0.50688]
[1761286855026,0.1256,3970.3,3970.2,0.95948]
[1761286856134,0.1256,3970.3,3970.2,3.87962474]
[1761286856690,0.1256,3970.3,3970.2,0.95948]
[1761286857225,0.1256,3970.3,3970.2,0.50688]
[1761286857792,0.1256,3970.3,3970.2,3.02564479]
[1761286857993,0.1256,3970.3,3970.2,3.47824479]
[1761286858220,0.001,3970.6,3970.5,0.50688]
[1761286858534,0.001,3970.6,3970.5,4.14748]
[1761286858833,0.001,3970.6,3970.5,6.21345448]
[1761286860319,0.001,3970.6,3970.5,10.17689629]
[1761286861258,0.001,3970.6,3970.5,3.187]
[1761286861259,0.1011,3970.6,3970.5,3.187]
[1761286861465,0.1266,3970.6,3970.5,3.187]
[1761286863366,0.2267,3970.6,3970.5,3.187]
[1761286863548,2.51876479,3970.2,3970.1,0.002]
[1761286863862,2.51876479,3970.2,3970.1,3.189]
[1761286863863,2.64436479,3970.2,3970.1,3.189]
[1761286864046,2.74446479,3970.2,3970.1,3.189]
[1761286864244,3.50023033,3970.2,3970.1,3.189]
[1761286865044,3.27453033,3970.2,3970.1,3.187]
[1761286865375,3.97945126,3970.2,3970.1,3.187]
[1761286865683,4.30125126,3970.2,3970.1,3.187]
[1761286865989,3.54548572,3970.2,3970.1,3.187]
[1761286867888,3.22368572,3970.2,3970.1,3.187]
[1761286868097,3.54548572,3970.2,3970.1,3.187]
[1761286869576,2.51896574,3969.9,3969.3,0.50688]
[1761286869891,0.1256,3969.7,3969.5,0.50688]
[1761286870041,0.1244,3969.7,3969.5,0.50688]
[1761286870445,0.1244,3969.7,3969.2,1.8782]
[1761286870446,0.1244,3969.7,3969.2,0.323]
[1761286870689,0.4449,3969.7,3969.3,3.69388]
[1761286871295,0.1244,3969.7,3969.3,3.69388]
[1761286871464,0.1244,3969.7,3969.5,0.50688]
[1761286871794,0.3205,3969.6,3969.5,0.50688]
[1761286871950,0.4449,3969.7,3969.5,0.50688]
[1761286874289,0.1244,3969.7,3969.5,0.50688]
[1761286874513,0.1244,3969.7,3969.1,0.002]
[1761286874514,0.3205,3969.6,3969.1,0.002]
[1761286874683,2.51929228,3969.4,3969.3,0.50688]
[1761286874888,2.64489228,3969.4,3969.3,0.50688]
[1761286875099,2.96539228,3969.4,3969.3,0.50688]
[1761286875278,0.4461,3969.4,3969.3,0.50688]
[1761286875804,0.4461,3969.4,3969.3,3.69488]
[1761286876181,0.4461,3969.4,3969.1,0.002]
[1761286876381,2.51939937,3969.2,3969.1,0.002]
[1761286876578,0.1256,3969.2,3969.1,3.19]
[1761286878067,0.1244,3969.2,3969.1,3.19]
[1761286878776,0.1244,3969.2,3969.1,4.35248]
[1761286879079,0.3215,3970.2,3969.1,4.35248]
[1761286879080,0.7558817,3969.7,3969.2,0.50688]
[1761286879295,0.1256,3969.9,3969.4,0.1256]
[1761286879612,0.001,3970.2,3969.5,3.188]
[1761286879613,1.07511886,3970.1,3969.5,3.188]
[1761286879781,2.51897267,3969.9,3969.6,3.188]
[1761286880014,2.51897267,3969.9,3969.7,3.188]
[1761286880512,0.1256,3969.8,3969.7,3.188]
[1761286882393,0.1256,3969.8,3969.7,3.6462]
[1761286882598,0.001,3970.2,3969.8,0.50688]
[1761286884505,0.001,3970.2,3969.8,3.48403525]
[1761286884731,0.001,3970.2,3969.8,0.96508]
[1761286884929,0.001,3970.2,3970.0,0.50688]
[1761286885107,0.001,3970.2,3970.1,6.21370824]
[1761286885629,0.001,3970.2,3970.1,4.15308]
[1761286885830,0.001,3970.2,3970.1,6.67190824]
[1761286886328,0.001,3970.2,3970.1,4.15308]
[1761286886828,0.001,3970.2,3970.1,3.69488]
[1761286887331,0.001,3970.2,3970.1,4.15308]
[1761286888231,0.001,3970.2,3970.1,6.66550824]
[1761286889819,0.001,3970.2,3970.1,6.99710239]
[1761286890027,0.001,3970.6,3970.1,6.99710239]
[1761286890028,0.001,3970.6,3970.5,6.53069629]
[1761286890205,0.001,3970.6,3970.5,11.27389629]
[1761286890404,0.001,3970.6,3970.5,11.71329629]
[1761286890701,0.001,3970.6,3970.5,3.69488]
[1761286892129,0.001,3970.6,3970.5,4.13428]
[1761286892946,0.001,3970.6,3970.5,6.65285448]
[1761286896744,0.001,3970.6,3970.5,3.69488]
[1761286897828,0.316,3970.6,3970.5,0.50688]
[1761286898044,0.316,3970.6,3970.5,3.69388]
[1761286898836,0.1266,3970.6,3970.5,3.69388]
[1761286899042,0.4416,3970.6,3970.5,3.69388]
[1761286900440,0.1266,3970.6,3970.5,3.69388]
[1761286902746,0.1266,3970.6,3970.5,0.50688]
[1761286902914,0.1266,3970.6,3970.5,3.69388]
[1761286903843,0.1266,3970.6,3970.5,6.21245448]
[1761286907135,0.001,3970.6,3970.5,6.65185448]
[1761286912848,0.001,3970.6,3970.5,6.21245448]
[1761286918744,0.001,3970.6,3970.5,14.37680679]
[1761286919283,0.001,3970.6,3970.5,11.45772771]
[1761286919457,0.001,3970.6,3970.5,14.37680679]
[1761286919779,0.001,3970.6,3970.5,14.50240679]
[1761286920191,0.001,3971.0,3970.9,3.02520078]
[1761286920360,0.001,3971.0,3970.9,9.13027986]
[1761286920559,0.001,3971.0,3970.9,10.02517401]
[1761286920795,0.001,3971.0,3970.9,11.58037401]
[1761286922393,0.001,3971.0,3970.9,12.21657401]
[1761286922594,0.001,3971.0,3970.9,13.46737401]
[1761286929075,0.001,3971.0,3970.9,1.6808]
[1761286929278,0.4359,3971.0,3970.9,3.185]
[1761286929901,0.4359,3971.0,3970.9,6.61095908]
[1761286930106,0.4359,3971.0,3970.9,9.12927986]
[1761286933012,0.001,3971.0,3970.9,9.12927986]
[1761286933213,0.001,3971.0,3970.9,11.01607401]
[1761286933510,0.001,3971.0,3970.9,11.57937401]
[1761286934423,0.001,3971.0,3970.9,15.18579156]
[1761286937793,0.001,3971.4,3971.3,4.58014713]
[1761286938002,0.001,3971.4,3971.3,11.12192621]
[1761286938311,0.001,3971.4,3971.3,11.24752621]
[1761286939109,0.001,3971.4,3971.3,14.85394376]
[1761286939611,0.001,3971.4,3971.3,16.74094376]
[1761286942917,0.001,3971.4,3971.3,11.66894376]
[1761286943418,0.001,3971.4,3971.3,16.74094376]
[1761286946317,0.001,3971.4,3971.3,16.23406376]
[1761286947100,0.001,3971.4,3971.3,16.74094376]
[1761286949824,0.001,3971.4,3971.3,16.23406376]
[1761286950221,0.001,3971.4,3971.3,16.74094376]
[1761286952732,0.001,3971.4,3971.3,16.99284376]
[1761286952931,0.001,3971.4,3971.3,16.74094376]
[1761286953289,0.001,3971.4,3971.3,11.23124376]
[1761286953493,0.001,3971.4,3971.3,16.30224376]
[1761286954322,0.4645,3971.4,3971.3,16.30224376]
[1761286954894,0.4645,3971.4,3971.3,12.69582621]
[1761286955318,0.001,3971.4,3971.3,12.69582621]
[1761286956215,0.001,3971.4,3971.3,13.13352621]
[1761286956632,0.001,3971.4,3971.3,12.69582621]
[1761286957658,0.001,3971.4,3971.3,13.02742036]
[1761286957818,0.001,3971.4,3971.3,13.46512036]
[1761286958549,0.001,3971.4,3971.3,17.07153791]
[1761286962240,0.001,3971.4,3971.3,16.63383791]
[1761286962554,0.001,3971.4,3971.3,14.41524376]
[1761286962752,0.3105,3971.4,3971.3,14.41524376]
[1761286963751,0.3105,3971.4,3971.3,10.80882621]
[1761286969762,0.3105,3971.4,3971.3,14.41524376]
[1761286970567,0.001,3971.4,3971.3,14.41524376]
[1761286970869,0.001,3971.4,3971.3,14.85294376]
[1761286971670,0.001,3971.4,3971.3,14.41524376]
[1761286971871,0.001,3971.4,3971.3,11.23124376]
[1761286972168,0.001,3971.4,3971.3,16.30224376]
[1761286973033,0.001,3971.4,3971.3,11.23124376]
[1761286973261,0.3105,3971.4,3971.3,16.30224376]
[1761286973803,0.3105,3971.4,3971.3,11.23124376]
[1761286974169,0.3105,3971.4,3971.3,14.41524376]
[1761286976753,0.3105,3971.4,3971.3,11.23124376]
[1761286976947,0.3105,3971.4,3971.3,14.41424376]
[1761286977173,0.3105,3971.4,3971.3,14.74583791]
[1761286978147,0.001,3971.4,3971.3,14.74583791]
[1761286978696,0.001,3971.4,3971.3,11.82675883]
[1761286978994,0.001,3971.4,3971.3,14.9978529]
[1761286980754,0.001,3971.4,3971.3,12.14644705]
[1761286981094,0.001,3971.4,3971.3,15.32944705]
[1761286981328,0.3105,3971.4,3971.3,15.32944705]
[1761286981602,0.3105,3971.4,3971.3,11.7230295]
[1761286981896,0.4361,3971.4,3971.3,3.183]
[1761286982400,0.4361,3971.4,3971.3,3.68988]
[1761286984089,0.4361,3971.4,3971.3,6.20794713]
[1761286984991,0.1266,3971.4,3971.3,6.20794713]
[1761286985237,0.001,3971.4,3971.3,6.20794713]
[1761286985737,0.3105,3971.4,3971.3,6.20794713]
[1761286986290,0.621,3971.4,3971.3,6.20794713]
[1761286989618,0.3105,3971.4,3971.3,6.20794713]
[1761286997136,0.001,3971.4,3971.3,6.20794713]
[1761287002826,0.001,3971.4,3971.3,3.02494713]
[1761287003030,0.001,3971.4,3971.3,6.20794713]
[1761287012929,0.001,3971.4,3971.3,6.33354713]
[1761287020223,0.001,3971.8,3971.7,4.57989353]
[1761287020429,0.1978,3972.8,3971.7,4.57989353]
[1761287020430,0.1978,3972.8,3972.1,3.02443998]
[1761287020627,0.1978,3972.8,3972.1,9.7091282]
[1761287020830,0.7418,3972.9,3972.1,9.7091282]
[1761287020831,0.4351,3972.9,3972.1,11.2643282]
[1761287021157,0.4542,3973.6,3972.3,0.50688]
[1761287021362,0.8893,3973.6,3973.3,2.51679627]
[1761287021550,0.4542,3973.6,3973.4,3.182]
[1761287021752,0.215,3974.0,3973.5,3.182]
[1761287022355,1.20929975,3973.9,3973.5,3.182]
[1761287022529,0.39406044,3973.8,3973.5,3.182]
[1761287022735,0.84826044,3973.8,3973.5,3.182]
[1761287023144,1.20929785,3973.7,3973.5,3.182]
[1761287023529,0.4542,3973.6,3973.5,3.182]
[1761287025266,0.75509785,3973.7,3973.6,0.50688]
[1761287025465,0.75509785,3973.7,3973.5,0.50688]
[1761287025670,0.75509785,3973.7,3973.6,3.68788]
[1761287025832,1.20929785,3973.7,3973.6,3.68788]
[1761287028270,1.20929785,3973.7,3973.6,3.181]
[1761287028570,1.35172764,3973.7,3973.6,3.181]
[1761287030177,1.47732764,3973.7,3973.6,3.181]
[1761287030492,1.33489785,3973.7,3973.6,3.181]
[1761287031755,0.88069785,3973.7,3973.6,3.181]
[1761287033287,0.88169785,3973.7,3973.6,3.181]
[1761287033664,1.33589785,3973.7,3973.6,3.181]
[1761287034069,1.33589785,3973.7,3973.0,0.50688]
[1761287034283,1.33589785,3973.7,3973.1,3.18]
[1761287034284,0.58778979,3973.6,3973.1,3.18]
[1761287034478,0.58778979,3973.6,3972.9,0.02517053]
[1761287034479,0.58778979,3973.6,3973.2,3.18]
[1761287034786,1.20936057,3973.5,3973.2,3.18]
[1761287035168,0.4542,3973.4,3973.2,3.18]
[1761287035373,0.4542,3973.6,3973.3,0.50688]
[1761287035567,0.75509405,3973.4,3973.3,0.50688]
[1761287035890,0.75509405,3973.4,3973.3,3.02367963]
[1761287036464,0.75509405,3973.4,3973.3,6.99906785]
[1761287036663,0.001,3973.7,3973.3,6.99906785]
[1761287036664,0.001,3973.7,3973.6,3.02348962]
[1761287036985,0.001,3973.7,3973.6,6.20348962]
[1761287037190,0.216,3973.7,3973.6,6.20348962]
[1761287038793,0.001,3973.7,3973.6,9.92341567]
[1761287040599,0.001,3973.7,3973.6,9.59182152]
[1761287044212,0.001,3973.7,3973.6,9.71742152]
[1761287044881,0.001,3973.7,3973.6,6.80178962]
[1761287045073,0.001,3973.7,3973.6,9.71742152]
[1761287050403,0.001,3973.7,3973.6,11.27262152]
[1761287054344,0.67539529,3975.9,3974.9,2.51577632]
[1761287054546,0.4426,3976.1,3975.8,2.9156319]
[1761287054852,0.4892,3976.0,3975.9,2.39]
[1761287055199,0.0466,3976.0,3975.9,2.89688]
[1761287055399,0.4449,3976.4,3976.0,0.50688]
[1761287055709,1.19558314,3976.3,3976.1,3.178]
[1761287056041,1.19558314,3976.3,3976.2,3.178]
[1761287056338,2.51508366,3976.1,3975.5,0.50688]
[1761287056518,0.441,3976.2,3975.6,3.178]
[1761287056844,2.51462336,3976.8,3976.0,2.9156319]
[1761287057053,2.72676741,3977.0,3976.1,3.178]
[1761287057054,2.51471988,3976.6,3976.1,3.178]
[1761287057536,0.441,3976.5,3976.2,0.50688]
[1761287058334,0.441,3976.5,3976.3,3.178]
[1761287058537,0.441,3976.5,3976.3,6.0936319]
[1761287058831,1.19560023,3976.7,3976.3,6.0936319]
[1761287059005,1.58784293,3976.7,3976.3,6.0936319]
[1761287059200,0.75460023,3976.7,3976.3,6.0936319]
[1761287059515,0.75460023,3976.7,3976.6,2.9156319]
[1761287059725,0.75460023,3976.7,3976.6,6.0936319]
[1761287061492,2.72679418,3977.0,3976.6,6.0936319]
[1761287061748,0.441,3976.7,3976.6,6.0936319]
[1761287062310,0.75448256,3976.9,3976.6,6.0936319]
[1761287062511,0.441,3976.9,3976.6,6.0936319]
[1761287062736,0.2123,3977.0,3976.6,6.0936319]
[1761287062909,0.96678256,3977.0,3976.6,6.0936319]
[1761287063717,1.40778256,3977.0,3976.6,6.0936319]
[1761287064027,0.441,3976.9,3976.6,3.178]
[1761287064363,2.95552196,3976.9,3976.6,3.178]
[1761287064733,2.95558835,3976.8,3976.6,3.178]
[1761287065268,0.5666,3976.7,3976.6,3.178]
[1761287065633,0.75448256,3976.9,3976.7,0.50688]
[1761287065955,2.95520733,3977.4,3976.8,2.9156319]
[1761287066120,1.19313323,3977.3,3976.9,3.177]
[1761287066555,0.1256,3977.0,3976.9,3.177]
[1761287068242,0.1256,3977.0,3976.9,3.68388]
[1761287068559,0.1256,3977.0,3976.9,6.19840136]
[1761287068758,0.4387,3977.5,3976.9,6.19840136]
[1761287068759,0.1256,3977.1,3977.0,0.50688]
[1761287069366,0.1256,3977.1,3977.0,3.02133813]
[1761287069567,2.73878736,3978.0,3977.0,3.02133813]
[1761287069729,0.4387,3977.8,3977.3,0.50688]
[1761287070059,0.4387,3977.8,3977.4,3.176]
[1761287070060,0.75433838,3977.7,3977.4,3.176]
[1761287070271,0.2249,3978.0,3977.5,3.44765332]
[1761287070441,0.4454,3978.0,3977.8,2.9156319]
[1761287070641,0.4454,3978.0,3977.9,3.176]
[1761287070861,0.1256,3977.6,3977.3,0.50688]
[1761287071165,0.1256,3977.6,3977.5,0.50688]
[1761287073055,0.571,3977.6,3977.5,0.50688]
[1761287074173,0.571,3977.6,3977.5,3.68288]
[1761287076872,3.08508158,3977.6,3977.5,3.175]
[1761287077181,3.08508158,3977.6,3977.2,0.50688]
[1761287077182,1.32532321,3977.6,3977.0,0.50688]
[1761287077380,0.1256,3977.3,3977.2,0.50688]
[1761287077677,0.1256,3977.3,3977.0,0.50688]
[1761287077882,0.571,3977.3,3977.2,3.68188]
[1761287078447,0.1256,3977.3,3977.2,3.68188]
[1761287078851,0.571,3977.3,3977.2,3.175]
[1761287084684,0.1256,3977.3,3977.2,3.175]
[1761287086286,0.1256,3977.3,3977.0,3.02133284]
[1761287086482,0.75437822,3977.4,3977.2,2.9156319]
[1761287086918,0.1256,3977.3,3977.1,3.6162]
[1761287087684,0.1256,3977.3,3977.1,6.13058018]
[1761287087994,0.1256,3977.3,3977.2,2.9156319]
[1761287088593,0.1256,3977.3,3977.2,3.3568319]
[1761287089185,0.1256,3977.3,3977.2,2.9156319]
[1761287089389,0.571,3977.3,3977.1,3.175]
[1761287089798,0.4454,3977.2,3977.1,3.68188]
[1761287090392,0.1256,3977.3,3977.1,3.68188]
[1761287090603,0.571,3977.3,3977.1,3.68188]
[1761287091119,0.4454,3977.2,3977.1,3.68188]
[1761287093937,0.4454,3977.2,3976.7,4.4708319]
[1761287094102,0.3425,3976.8,3976.6,0.50688]
[1761287094305,0.3425,3976.8,3976.7,3.175]
[1761287094613,0.7856,3976.8,3976.7,3.175]
[1761287094817,0.1256,3976.8,3976.7,6.5975119]
[1761287095007,0.1256,3976.8,3976.7,9.55335972]
[1761287095938,0.1256,3976.8,3976.7,7.0387119]
[1761287096245,0.1256,3976.8,3976.7,3.68188]
[1761287096832,0.1256,3976.8,3976.7,3.68088]
[1761287097131,0.1256,3976.8,3976.7,9.11115972]
[1761287097338,0.1256,3976.8,3976.7,6.37835972]
[1761287097634,0.1256,3976.8,3976.7,9.55335972]
[1761287097939,0.1256,3976.8,3976.7,7.0387119]
[1761287098234,0.1256,3976.8,3976.7,9.55335972]
[1761287098827,0.1256,3976.8,3976.7,6.63772782]
[1761287100128,0.1256,3976.8,3976.7,4.12308]
[1761287100431,0.1256,3976.8,3976.7,6.19652782]
[1761287100638,0.1256,3976.8,3976.7,6.64892782]
[1761287102134,0.1256,3976.8,3976.7,3.68188]
[1761287102334,0.583,3976.8,3976.7,3.68088]
[1761287102538,0.788,3976.8,3976.7,3.68088]
[1761287103103,0.1256,3976.8,3976.7,3.68088]
[1761287103333,0.1256,3976.9,3976.8,0.50688]
[1761287103732,0.1256,3976.9,3976.8,0.95928]
[1761287103935,0.1256,3976.9,3976.8,3.02146459]
[1761287104333,0.1256,3976.9,3976.8,3.47386459]
[1761287104541,2.51508992,3977.6,3977.1,0.50688]
[1761287104542,0.001,3977.6,3977.1,0.50688]
[1761287104739,0.75435545,3977.3,3977.2,3.68088]
[1761287104917,0.001,3977.6,3977.2,3.68088]
[1761287104918,0.001,3977.6,3977.3,0.50688]
[1761287105121,0.1256,3977.4,3977.3,0.50688]
[1761287106466,0.557,3977.4,3977.3,0.50688]
[1761287108332,0.558,3977.4,3977.3,0.50688]
[1761287109172,0.558,3977.4,3976.5,0.1256]
[1761287109348,0.4314,3977.3,3976.8,0.50688]
[1761287109561,0.4314,3977.3,3977.0,0.50688]
[1761287109768,0.1256,3977.1,3977.0,0.50688]
[1761287109949,0.1256,3977.1,3976.6,1.5552]
[1761287110159,0.1256,3977.1,3976.7,6.19547936]
[1761287110160,0.4314,3977.0,3976.7,6.19547936]
[1761287110343,0.4314,3977.0,3976.8,0.50688]
[1761287110678,0.4314,3977.0,3976.9,3.174]
[1761287111052,0.557,3977.0,3976.9,3.174]
[1761287114178,0.557,3977.0,3976.6,0.50688]
[1761287114343,0.1256,3976.7,3976.6,0.50688]
[1761287114546,0.1256,3976.7,3976.6,3.68088]
[1761287115094,0.1256,3976.7,3976.6,6.19559105]
[1761287115377,0.001,3977.4,3977.0,2.51441796]
[1761287115668,0.001,3977.4,3977.1,3.174]
[1761287115874,0.4324,3977.4,3977.1,3.174]
[1761287116063,0.1256,3977.2,3977.1,3.174]
[1761287116441,0.1256,3977.2,3977.1,6.76297492]
[1761287116638,0.001,3977.4,3977.3,3.02114847]
[1761287116842,0.1266,3977.4,3977.3,3.02114847]
[1761287117341,0.001,3977.4,3977.3,3.02114847]
[1761287119274,0.001,3977.4,3977.3,3.47354847]
[1761287119482,0.001,3977.4,3977.3,3.02114847]
[1761287121052,0.001,3977.4,3977.3,0.50688]
[1761287121292,0.001,3977.4,3977.3,3.02114847]
[1761287124093,0.001,3977.4,3977.3,3.47354847]
[1761287124578,0.001,3977.4,3977.3,3.02114847]
[1761287126458,0.001,3977.4,3977.3,3.47354847]
[1761287126693,0.001,3977.4,3977.3,3.80514262]
[1761287127789,0.001,3977.4,3977.3,7.75034847]
[1761287128565,0.001,3977.4,3977.3,8.19114847]
[1761287129988,0.001,3977.4,3977.3,7.75034847]
[1761287130294,0.001,3977.4,3977.3,8.53064262]
[1761287130493,0.001,3977.4,3977.3,8.08194262]
[1761287130897,0.001,3977.4,3977.3,4.90794262]
[1761287131068,0.001,3977.4,3977.3,7.74934847]
[1761287131910,0.001,3977.4,3977.3,0.50688]
[1761287132082,0.001,3977.4,3977.3,3.67988]
[1761287132401,0.472,3977.4,3977.3,3.67988]
[1761287133300,0.001,3977.4,3977.3,6.19414847]
[1761287136301,0.1266,3977.4,3977.3,6.19414847]
[1761287138507,0.1266,3977.4,3977.3,3.67988]
[1761287138718,0.5976,3977.4,3977.3,3.67988]
[1761287139536,0.5976,3977.4,3977.3,0.50688]
[1761287139687,0.5976,3977.4,3977.3,3.67988]
[1761287139889,0.5976,3977.4,3977.3,3.173]
[1761287140091,3.11186217,3977.4,3976.5,3.02159456]
[1761287140326,0.1256,3977.1,3976.7,0.50688]
[1761287140528,0.1256,3976.9,3976.7,0.50688]
[1761287140820,0.1256,3976.9,3976.8,3.173]
[1761287141027,0.3563,3976.9,3976.8,3.67988]
[1761287141624,0.8254,3976.9,3976.8,3.67988]
[1761287145009,0.1256,3976.9,3976.8,3.67988]
[1761287145405,0.1256,3976.9,3976.8,0.50688]
[1761287145656,0.5972,3976.9,3976.8,3.67988]
[1761287146443,0.1256,3976.9,3976.8,3.67988]
[1761287147605,0.3562,3976.9,3976.8,3.173]
[1761287147808,0.8254,3976.9,3976.8,3.173]
[1761287152874,1.23482286,3976.9,3975.9,1.5552]
[1761287153038,1.23482286,3976.9,3975.4,3.82565023]
[1761287153039,2.51477199,3976.6,3975.6,1.884]
[1761287153359,2.98384464,3976.8,3975.7,7.24346473]
[1761287153360,0.1256,3975.8,3975.7,7.24346473]
[1761287153542,0.1256,3975.8,3975.7,6.19514473]
[1761287153745,0.1256,3975.8,3975.7,5.68826473]
[1761287153951,0.1256,3975.8,3975.7,6.19514473]
[1761287155848,0.5948,3975.8,3975.7,3.67988]
[1761287156242,0.5948,3975.8,3975.3,1.5552]
[1761287156443,0.1256,3975.6,3975.5,1.5552]
[1761287156749,0.465,3975.7,3975.0,0.215]
[1761287156949,0.465,3975.7,3974.6,3.49405608]
[1761287156950,0.1256,3975.3,3975.1,3.173]
[1761287157252,0.1256,3975.3,3974.9,0.39347373]
[1761287157437,0.1256,3975.1,3975.0,3.173]
[1761287157831,0.5906,3975.1,3975.0,3.173]
[1761287158159,0.1256,3975.1,3975.0,3.173]
[1761287158735,0.1256,3975.1,3974.9,2.51577891]
[1761287158961,0.465,3975.3,3975.0,3.173]
[1761287159389,0.1256,3975.1,3975.0,3.173]
[1761287159662,0.5906,3975.1,3975.0,3.173]
[1761287161652,0.1256,3975.1,3975.0,3.173]
[1761287161851,0.1256,3975.1,3974.8,5.93713875]
[1761287162062,0.465,3975.3,3974.9,3.174]
[1761287162451,0.1256,3975.0,3974.9,6.19666656]
[1761287162768,0.33933751,3975.3,3974.9,6.19666656]
[1761287163071,0.21369598,3975.3,3974.9,6.19666656]
[1761287163266,0.1256,3975.0,3974.9,6.19666656]
[1761287163470,0.1256,3975.0,3974.9,9.11112187]
[1761287163672,3.27001627,3975.7,3974.9,9.11112187]
[1761287163873,0.1256,3975.0,3974.9,9.11112187]
[1761287164368,2.51528315,3975.7,3974.9,9.11112187]
[1761287164568,3.27000197,3975.8,3974.9,3.174]
[1761287164770,0.1708,3976.3,3975.7,2.51528032]
[1761287164980,0.1708,3976.3,3975.9,2.91445531]
[1761287165139,2.61396554,3976.2,3975.8,3.174]
[1761287165670,0.1256,3975.9,3975.8,3.174]
[1761287166144,0.1256,3975.9,3975.3,3.42133531]
[1761287166339,0.1256,3975.5,3975.4,3.68088]
[1761287166655,0.1256,3975.5,3975.4,3.174]
[1761287166856,0.1256,3975.5,3975.4,3.6123]
[1761287168390,0.1256,3975.5,3975.4,6.63465014]
[1761287169788,0.2246,3975.5,3975.4,3.174]
[1761287170279,0.1256,3975.5,3975.4,3.174]
[1761287171042,0.75467236,3976.1,3975.5,0.50688]
[1761287171253,0.75467236,3976.1,3975.7,0.50688]
[1761287171465,0.1708,3976.3,3975.8,3.174]
[1761287171860,0.1256,3975.9,3975.8,3.174]
[1761287172056,0.1256,3975.9,3975.8,5.68921706]
[1761287172279,0.75463819,3976.3,3975.9,0.50688]
[1761287172479,2.74617372,3976.9,3976.2,2.91445531]
[1761287172681,2.51460964,3976.8,3976.3,3.174]
[1761287172855,2.51460964,3976.8,3975.7,0.50688]
[1761287172856,2.51493129,3976.3,3975.7,0.50688]
[1761287173055,2.51493129,3976.3,3975.8,3.174]
[1761287173263,0.0997,3976.2,3975.8,3.174]
[1761287174649,0.0997,3976.2,3975.9,3.174]
[1761287174845,0.75461731,3976.5,3975.9,3.174]
[1761287175049,0.75461731,3976.5,3976.0,3.174]
[1761287175249,0.75461731,3976.5,3975.8,5.86792325]
[1761287175450,0.75461731,3976.5,3975.9,3.174]
[1761287176376,3.26941463,3976.5,3975.9,3.174]
[1761287176577,0.0997,3976.4,3974.7,0.4383]
[1761287176755,2.51503021,3976.1,3975.4,2.5154652]
[1761287176957,2.51503021,3976.1,3975.5,2.06208]
[1761287177161,0.1004,3976.0,3975.6,3.174]
[1761287177364,2.61549242,3976.0,3975.6,3.174]
[1761287177676,0.1687,3975.9,3975.6,3.174]
[1761287177882,0.2698,3975.9,3975.6,3.174]
[1761287178959,0.1011,3975.8,3975.7,3.174]
[1761287179160,2.61631706,3975.8,3975.7,3.174]
[1761287179382,0.63110625,3975.8,3975.7,3.174]
[1761287179683,0.63110625,3975.8,3975.0,1.5552]
[1761287179852,2.61636684,3975.8,3975.1,3.174]
[1761287180054,2.51526684,3975.8,3975.1,3.174]
[1761287180284,0.1011,3975.7,3975.1,5.68965468]
[1761287180669,0.1011,3975.7,3975.1,3.174]
[1761287181072,2.6163943,3975.7,3975.1,3.174]
[1761287181461,2.6163943,3975.7,3975.2,3.174]
[1761287181666,0.1011,3975.6,3975.2,3.174]
[1761287182291,0.1256,3975.3,3975.0,0.50888]
[1761287182500,0.1011,3975.6,3975.1,3.174]
[1761287182881,0.1256,3975.2,3975.1,3.68088]
[1761287184370,0.1256,3975.2,3975.1,0.50688]
[1761287184569,0.1256,3975.2,3975.1,3.68088]
[1761287188994,0.1256,3975.2,3975.0,0.002]
[1761287189292,0.1256,3975.2,3975.1,3.174]
[1761287190298,0.1256,3975.2,3975.0,0.002]
[1761287190504,0.1011,3975.1,3975.0,0.002]
[1761287190697,0.1011,3975.1,3975.0,3.176]
[1761287191394,0.1011,3975.1,3975.0,0.002]
[1761287191599,0.1011,3975.1,3975.0,3.176]
[1761287191782,0.1256,3975.2,3975.0,3.176]
[1761287192897,0.1256,3975.2,3975.0,6.09045531]
[1761287193810,0.1256,3975.2,3975.1,3.174]
[1761287195613,0.2267,3975.2,3975.1,3.174]
[1761287196402,0.1256,3975.2,3975.1,3.174]
[1761287196709,0.2267,3975.2,3975.1,3.174]